bitfinex-derivatives/quotes_SOLF0:USTF0_20250212
["timestamp","ask_amount","ask_price","bid_price","bid_amount"]
[1739359943309,0.03229482,197.11,197.07,0.03447045]
[1739359943510,1.5355,197.2,196.98,1.5127]
[1739359943700,0.03281892,197.11,197.07,0.03814919]
[1739359947812,1.5355,197.2,197.07,0.03814919]
[1739359948007,1.5355,197.2,196.98,1.5127]
[1739359948213,1.5355,197.2,196.98,194.5127]
[1739359949112,0.03895908,197.11,197.07,0.03861462]
[1739359949314,1.5355,197.2,196.98,194.5127]
[1739359949513,0.03236543,197.11,197.07,0.03713814]
[1739359974932,0.03236543,197.11,196.97,60.8168313]
[1739359975135,0.91959802,197.19,196.97,60.8168313]
[1739359975330,195.0,197.18,196.97,60.8168313]
[1739359975533,0.91959802,197.17,196.97,60.8168313]
[1739359976130,0.03363242,197.09,197.05,0.03831147]
[1739359976434,0.91959802,197.17,196.97,60.8168313]
[1739359976631,0.03239957,197.09,197.05,0.03600755]
[1739359976831,0.91959802,197.15,196.97,60.8168313]
[1739359977028,2.48419802,197.15,196.97,60.8168313]
[1739359977226,0.91959802,197.14,196.97,60.8168313]
[1739359977734,1.5982,197.13,196.97,60.8168313]
[1739359977936,0.03657845,197.07,197.04,0.03898944]
[1739359978132,0.03657845,197.07,196.97,60.8168313]
[1739359979235,0.03657845,197.07,197.0,0.03265245]
[1739360005455,1.5587,197.16,197.0,0.03265245]
[1739360005654,1.5587,197.16,196.92,208.24]
[1739360006659,0.03435294,197.06,197.02,0.03819662]
[1739360006956,1.5587,197.16,196.92,208.24]
[1739360007358,1.5587,197.16,196.98,7.01957022]
[1739360007658,1.5587,197.16,196.99,3.0476]
[1739360008057,0.03348474,197.09,197.06,0.03528006]
[1739360008357,1.5587,197.16,197.06,0.03528006]
[1739360008556,0.03598518,197.09,197.06,0.03528006]
[1739360008756,1.5587,197.16,197.06,0.03528006]
[1739360009149,0.03753382,197.13,197.06,0.03528006]
[1739360042487,0.03753382,197.13,197.06,28.11356096]
[1739360042684,0.03753382,197.13,197.07,4.6461]
[1739360045587,0.03753382,197.13,197.08,4.61364379]
[1739360046183,0.0053256,197.13,197.08,4.61364379]
[1739360046386,1.614,197.27,197.08,4.61364379]
[1739360047386,0.03807259,197.19,197.16,0.0335618]
[1739360047589,1.614,197.27,197.16,0.0335618]
[1739360048079,0.03416157,197.23,197.16,0.0335618]
[1739360055187,4.6397,197.37,197.16,0.0335618]
[1739360055393,4.6397,197.37,197.16,208.24]
[1739360055687,4.6397,197.37,197.17,18.74]
[1739360056493,0.03514169,197.29,197.25,0.03643686]
[1739360056692,4.6397,197.37,197.17,15.24]
[1739360056894,0.03416061,197.29,197.25,0.03710869]
[1739360057083,4.6397,197.37,197.17,208.24]
[1739360057289,0.0328346,197.29,197.25,0.03236702]
[1739360057591,0.03838681,197.29,197.25,0.03268244]
[1739360064396,0.03838681,197.29,197.15,4.6789]
[1739360064701,0.9189408,197.34,197.15,4.6789]
[1739360064999,0.9189408,197.33,197.15,1.576]
[1739360065199,0.9189408,197.32,197.1,193.0]
[1739360065390,4.6397,197.37,197.1,194.5994]
[1739360065592,0.03243503,197.24,197.2,0.0368964]
[1739360065891,0.91900972,197.35,197.1,194.5994]
[1739360066092,0.03237377,197.24,197.2,0.03785448]
[1739360066291,0.91906874,197.33,197.1,194.5994]
[1739360066500,0.03665949,197.24,197.2,0.03882191]
[1739360066694,4.6397,197.37,197.1,194.5994]
[1739360066892,0.03532857,197.19,197.15,0.03238639]
[1739360067101,0.91892826,197.36,197.1,194.5994]
[1739360067603,0.03707402,197.25,197.21,0.03300216]
[1739360067902,0.91895096,197.35,197.1,194.5994]
[1739360068096,0.0325635,197.25,197.21,0.03833099]
[1739360068295,0.91895096,197.33,197.1,194.5994]
[1739360068495,0.03324909,197.25,197.21,0.03744751]
[1739360068698,0.91895096,197.35,197.1,194.5994]
[1739360068898,0.0375163,197.25,197.21,0.03452982]
[1739360069100,0.91895096,197.33,197.1,194.5994]
[1739360069399,0.03591739,197.25,197.21,0.03832946]
[1739360069699,4.6397,197.37,197.1,209.8394]
[1739360070002,0.03646018,197.25,197.21,0.0328393]
[1739360070202,0.91882646,197.36,197.1,209.8394]
[1739360070398,0.03659608,197.25,197.21,0.03883199]
[1739360070703,0.91882646,197.36,197.21,0.0354816]
[1739360070894,0.91882646,197.36,197.12,15.24]
[1739360071095,0.03556241,197.3,197.27,0.03848155]
[1739360071301,0.91854816,197.42,197.14,15.24]
[1739360071501,0.03269488,197.3,197.27,0.03395701]
[1739360071801,0.91854816,197.42,197.27,0.03524225]
[1739360072002,0.03269935,197.3,197.14,208.24]
[1739360072202,0.91854816,197.42,197.33,0.03220288]
[1739360072402,0.91854816,197.42,197.14,208.24]
[1739360072597,0.91854816,197.42,197.36,0.03349085]
[1739360072798,0.03327349,197.41,197.17,22.25957022]
[1739360073002,4.6515,197.43,197.37,0.03255587]
[1739360073202,0.03506865,197.31,197.19,15.24]
[1739360073408,0.91849871,197.42,197.19,208.24]
[1739360073610,0.03461832,197.27,197.23,0.03652132]
[1739360073809,4.6515,197.43,197.23,208.24]
[1739360074413,4.6515,197.43,197.23,193.0]
[1739360074815,0.9184757,197.42,197.23,193.0]
[1739360075105,0.03376297,197.35,197.31,0.0341185]
[1739360075315,4.6515,197.43,197.23,193.0]
[1739360075517,0.03791445,197.35,197.31,0.03457611]
[1739360075717,4.6515,197.43,197.23,193.0]
[1739360076016,0.03769341,197.35,197.31,0.03279586]
[1739360076315,4.6515,197.43,197.24,15.24]
[1739360076616,0.03758086,197.35,197.23,193.0]
[1739360076917,1.483,197.42,197.23,193.0]
[1739360077109,0.03609658,197.31,197.27,0.03784195]
[1739360077309,1.483,197.42,197.23,193.0]
[1739360077514,0.03734013,197.31,197.27,0.03328794]
[1739360077714,1.483,197.42,197.23,193.0]
[1739360077928,0.03843137,197.31,197.27,0.03361784]
[1739360078115,1.483,197.42,197.23,193.0]
[1739360078311,0.03859294,197.29,197.25,0.03359953]
[1739360078518,1.483,197.42,197.23,193.0]
[1739360078718,0.03822107,197.29,197.25,0.03707677]
[1739360078918,1.483,197.42,197.23,193.0]
[1739360079517,0.03897454,197.34,197.31,0.03209003]
[1739360079719,1.483,197.42,197.31,0.03209003]
[1739360079921,0.03734147,197.34,197.31,0.03209003]
[1739360080214,1.483,197.42,197.31,0.03209003]
[1739360080620,0.03506874,197.38,197.31,0.03209003]
[1739360091027,0.95377866,197.38,197.31,0.03209003]
[1739360091230,0.03506874,197.38,197.31,0.03209003]
[1739360104638,1.50736874,197.38,197.31,0.03209003]
[1739360109043,0.91873498,197.37,197.31,0.03209003]
[1739360110037,1.4937,197.36,197.31,0.03209003]
[1739360110235,0.91873498,197.35,197.31,0.03209003]
[1739360111734,0.91873498,197.35,197.19,4.60704679]
[1739360112741,1.4937,197.36,197.18,4.53]
[1739360112945,0.03780356,197.29,197.25,0.03725653]
[1739360142365,36.53471957,197.38,197.25,0.03725653]
[1739360142568,1.4632,197.42,197.18,4.53]
[1739360143769,0.0333463,197.3,197.27,0.03838163]
[1739360143968,1.4632,197.42,197.18,4.53]
[1739360144169,0.03663404,197.3,197.27,0.03588371]
[1739360144374,1.4632,197.42,197.18,4.53]
[1739360144768,1.4632,197.42,197.18,11.54957022]
[1739360144972,0.91863146,197.41,197.19,4.60205727]
[1739360145472,0.03514506,197.32,197.28,0.0377252]
[1739360145668,0.91863146,197.41,197.19,4.60205727]
[1739360145972,0.03610596,197.32,197.28,0.03725966]
[1739360146172,0.91863146,197.39,197.19,4.60205727]
[1739360146472,0.03785522,197.31,197.27,0.03295377]
[1739360146665,0.91864443,197.41,197.19,4.60205727]
[1739360146865,0.03662108,197.31,197.27,0.03581065]
[1739360147068,1.4632,197.42,197.19,4.60205727]
[1739360147069,0.91864443,197.39,197.19,4.60205727]
[1739360147367,0.91864443,197.39,197.18,80.38663848]
[1739360147368,0.91864443,197.38,197.27,0.03625905]
[1739360147672,0.03703692,197.31,197.18,59.3279278]
[1739360147873,0.91864775,197.41,197.18,59.3279278]
[1739360148069,0.03242918,197.26,197.23,0.03205582]
[1739360148272,0.91864775,197.41,197.18,59.3279278]
[1739360148465,0.03784491,197.26,197.23,0.03253095]
[1739360148774,0.0348465,197.26,197.24,0.03254534]
[1739360149072,0.0348465,197.26,197.18,59.3279278]
[1739360149266,0.0348465,197.26,197.23,0.03295279]
[1739360153577,4.65e-05,197.26,197.23,0.03295279]
[1739360154779,4.65e-05,197.26,197.25,5.0694]
[1739360176501,4.65e-05,197.26,197.24,5.0696]
[1739360182610,4.65e-05,197.26,197.23,5.10285279]
[1739360182808,4.65e-05,197.26,197.23,0.03295279]
[1739360183005,4.65e-05,197.26,197.13,104.9884]
[1739360183204,0.91903579,197.3,197.13,104.9884]
[1739360183503,5.0699,197.24,197.19,5.0709]
[1739360183706,1.6111,197.31,197.13,100.38]
[1739360183908,1.4685,197.23,197.13,100.38]
[1739360184107,5.0705,197.21,197.2,0.03528785]
[1739360184306,1.5708,197.22,197.12,7.01957022]
[1739360185208,5.071,197.19,197.14,5.0721]
[1739360185403,0.03272805,197.18,197.15,0.03431747]
[1739360186407,0.03272805,197.18,197.16,5.0717]
[1739360187810,0.03272805,197.18,197.15,0.03431747]
[1739360188011,0.03272805,197.18,197.17,5.0715]
[1739360188709,0.03272805,197.18,197.15,5.10611747]
[1739360194123,0.03272805,197.18,197.16,5.0717]
[1739360204633,5.10402805,197.18,197.15,5.10631747]
[1739360205833,5.10402805,197.18,197.15,0.03431747]
[1739360209739,5.0715,197.17,197.15,0.03431747]
[1739360210140,0.03272805,197.18,197.15,0.03431747]
[1739360210638,5.0715,197.17,197.15,0.03431747]
[1739360210838,0.03272805,197.18,197.15,0.03431747]
[1739360211739,5.10402805,197.18,197.15,5.10631747]
[1739360216937,5.10402805,197.18,197.15,0.03431747]
[1739360223451,5.10402805,197.18,197.15,5.10621747]
[1739360223647,5.10402805,197.18,197.15,0.03431747]
[1739360223648,0.03272805,197.18,197.15,0.03431747]
[1739360223847,0.91922552,197.28,197.15,0.03431747]
[1739360224042,0.91922552,197.28,197.07,3.1171]
[1739360224447,1.465,197.29,197.07,3.1171]
[1739360224847,5.0696,197.25,197.2,5.0707]
[1739360225150,0.03756338,197.24,197.2,5.0707]
[1739360225451,0.03756338,197.24,197.21,0.03450358]
[1739360226452,0.03756338,197.24,197.23,5.07]
[1739360228148,10.10626667,197.31,197.21,0.03450358]
[1739360228350,5.0687,197.29,197.21,0.03450358]
[1739360228551,5.0687,197.29,197.1,7.01957022]
[1739360228552,5.0687,197.29,197.23,5.0699]
[1739360228751,5.0687,197.28,197.23,5.0699]
[1739360229149,0.03422064,197.27,197.24,0.03574401]
[1739360230154,5.10322064,197.27,197.24,0.03574401]
[1739360234354,0.03422064,197.27,197.24,0.03574401]
[1739360234552,5.0694,197.25,197.24,0.03574401]
[1739360240462,0.03422064,197.27,197.24,0.03574401]
[1739360241157,0.03422064,197.27,197.25,5.0692]
[1739360243558,0.03422064,197.27,197.26,5.0692]
[1739360245257,0.03422064,197.27,197.24,5.10524401]
[1739360253665,5.10312064,197.27,197.24,5.10524401]
[1739360254063,5.10312064,197.27,197.24,0.03574401]
[1739360255267,5.0692,197.26,197.24,0.03574401]
[1739360256369,5.0694,197.25,197.24,0.03574401]
[1739360264378,5.071,197.19,197.15,5.072]
[1739360265675,5.10472895,197.19,197.15,5.10943982]
[1739360266179,5.0713,197.18,197.15,0.03743982]
[1739360267383,5.0717,197.17,197.15,0.03743982]
[1739360268279,0.03372895,197.19,197.15,0.03743982]
[1739360268480,5.0718,197.16,197.15,0.03743982]
[1739360283695,0.03372895,197.19,197.15,5.10933982]
[1739360283899,0.03372895,197.19,197.15,0.03743982]
[1739360284598,0.91926804,197.29,197.15,0.03743982]
[1739360284996,0.91926804,197.29,197.07,3.1171]
[1739360285193,0.91926804,197.29,197.07,196.1171]
[1739360285194,5.0689,197.28,197.07,196.1171]
[1739360285507,10.10626667,197.34,197.07,196.1171]
[1739360285695,5.817e-05,197.19,197.16,0.03710867]
[1739360286094,0.91894614,197.34,197.08,15.23]
[1739360286295,0.91894614,197.34,197.08,212.81498951]
[1739360286491,5.0679,197.32,197.08,212.81498951]
[1739360286998,8.085e-05,197.22,197.18,0.0383108]
[1739360287201,5.0679,197.32,197.08,212.81498951]
[1739360287994,5.0679,197.32,197.22,5.0702]
[1739360288297,5.0679,197.32,197.08,212.81498951]
[1739360288695,5.0679,197.32,197.09,25.38017746]
[1739360288999,5.0679,197.32,197.25,5.0692]
[1739360289298,0.03800532,197.3,197.27,0.03625881]
[1739360290798,5.0687,197.28,197.27,0.03625881]
[1739360292503,5.10630532,197.3,197.27,0.03625881]
[1739360293206,0.03800532,197.3,197.27,0.03625881]
[1739360293502,0.03800532,197.3,197.27,5.10505881]
[1739360293901,0.03800532,197.3,197.28,5.0686]
[1739360296296,13.90936857,197.47,197.27,0.03625881]
[1739360296502,3.96437519,197.46,197.2,115.65]
[1739360296702,0.91857519,197.45,197.21,18.2002]
[1739360297507,3.0458,197.46,197.31,0.0329565]
[1739360297803,8.1101,197.46,197.21,18.2002]
[1739360298098,3.0458,197.46,197.21,211.2002]
[1739360298304,5.0644,197.45,197.32,0.03436989]
[1739360298499,5.0644,197.45,197.21,211.2002]
[1739360298700,5.0644,197.45,197.37,0.0370823]
[1739360299002,5.0644,197.45,197.21,211.2002]
[1739360299198,5.0644,197.45,197.39,0.0361491]
[1739360299399,5.0644,197.45,197.4,0.03506866]
[1739360299605,5.0644,197.45,197.21,211.2002]
[1739360299904,5.0644,197.45,197.41,0.03807383]
[1739360300106,5.0644,197.45,197.21,211.2002]
[1739360300302,5.0644,197.45,197.41,0.03829996]
[1739360300503,5.0639,197.47,197.23,208.23]
[1739360300803,5.0639,197.47,197.24,18.5420598]
[1739360301002,5.0639,197.47,197.33,0.03794451]
[1739360301306,5.0639,197.47,197.39,5.0658]
[1739360302305,5.0639,197.47,197.39,9.5856]
[1739360302606,5.0641,197.46,197.39,9.5856]
[1739360303108,5.0641,197.46,197.41,0.03449331]
[1739360304207,5.065,197.43,197.41,0.03449331]
[1739360305707,5.0651,197.42,197.41,0.03449331]
[1739360322521,5.0648,197.44,197.41,0.03449331]
[1739360323423,5.064,197.47,197.42,5.0649]
[1739360323718,5.064,197.47,197.41,0.03449331]
[1739360324023,5.064,197.47,197.43,5.0646]
[1739360324219,5.0635,197.49,197.41,0.03449331]
[1739360325125,2.0,197.5,197.41,0.03449331]
[1739360327026,2.0,197.5,197.48,5.0635]
[1739360327925,2.0,197.5,197.47,0.0384632]
[1739360328124,2.0,197.5,197.47,5.1022632]
[1739360329422,2.0,197.5,197.47,0.0384632]
[1739360329627,5.0633,197.49,197.47,0.0384632]
[1739360329927,2.0,197.5,197.47,0.0384632]
[1739360330926,2.0,197.5,197.34,4.7054]
[1739360331128,2.03517399,197.5,197.34,4.7054]
[1739360331427,2.0,197.5,197.34,4.7054]
[1739360332227,0.03625064,197.44,197.41,5.0653]
[1739360332627,5.0649,197.43,197.4,0.03570976]
[1739360334625,0.03625064,197.44,197.4,0.03570976]
[1739360336936,5.0653,197.41,197.4,0.03570976]
[1739360340937,5.0651,197.43,197.4,0.03570976]
[1739360342533,0.03625064,197.44,197.4,0.03570976]
[1739360343841,0.03625064,197.44,197.43,5.0648]
[1739360350435,5.064e-05,197.44,197.43,5.0648]
[1739360354142,5.064e-05,197.44,197.43,8.40028837]
[1739360354340,5.064e-05,197.44,197.43,5.0648]
[1739360356437,5.064e-05,197.44,197.43,8.39741098]
[1739360357739,5.064e-05,197.44,197.43,5.0648]
[1739360358046,5.064e-05,197.44,197.43,8.3952909]
[1739360359847,5.064e-05,197.44,197.43,8.39420487]
[1739360360336,5.064e-05,197.5,197.49,5.0633]
[1739360363052,5.064e-05,197.5,197.49,9.7367]
[1739360363747,5.064e-05,197.5,197.49,5.0633]
[1739360366755,5.064e-05,197.5,197.48,0.0355106]
[1739360369853,5.0633,197.49,197.48,0.0355106]
[1739360371865,5.0638,197.47,197.43,5.0646]
[1739360373064,5.0638,197.47,197.43,5.10039151]
[1739360374061,1.5774,197.49,197.43,0.03579151]
[1739360374357,1.4645,197.48,197.43,0.03579151]
[1739360375465,5.0645,197.45,197.43,0.03579151]
[1739360376666,5.0646,197.44,197.43,0.03579151]
[1739360378064,0.0381724,197.46,197.34,3.053]
[1739360378271,5.0651,197.42,197.36,5.0666]
[1739360378764,5.0651,197.42,197.32,100.3]
[1739360379064,5.0651,197.42,197.37,5.0663]
[1739360379261,0.03281631,197.39,197.37,5.0663]
[1739360380772,0.03281631,197.39,197.38,5.0661]
[1739360383870,0.03281631,197.39,197.37,5.0663]
[1739360384071,0.03281631,197.39,197.35,0.0369673]
[1739360385975,0.03281631,197.39,197.36,5.0666]
[1739360386175,0.03281631,197.39,197.35,0.0369673]
[1739360387975,0.03281631,197.39,197.38,5.0661]
[1739360393780,0.03281631,197.39,197.36,5.0666]
[1739360394775,5.09871631,197.39,197.36,5.0666]
[1739360397679,5.09871631,197.39,197.35,5.1037673]
[1739360402385,0.03281631,197.39,197.36,5.0665]
[1739360402683,0.03281631,197.39,197.35,0.0369673]
[1739360403885,0.03281631,197.39,197.37,5.0662]
[1739360405989,0.03281631,197.39,197.36,5.0666]
[1739360406390,0.03281631,197.39,197.35,0.0369673]
[1739360406687,0.03281631,197.39,197.36,5.0666]
[1739360413888,0.03281631,197.39,197.35,0.0369673]
[1739360413889,5.0662,197.38,197.35,0.0369673]
[1739360414286,0.03281631,197.39,197.35,0.0369673]
[1739360416488,0.03281631,197.39,197.38,5.0661]
[1739360417494,241.79217629,197.54,197.36,3.0967]
[1739360417691,6.6409,197.49,197.43,5.0648]
[1739360418795,0.03741733,197.48,197.44,0.03344325]
[1739360419297,5.0639,197.47,197.44,0.03344325]
[1739360422299,0.03741733,197.48,197.44,0.03344325]
[1739360422495,5.0643,197.45,197.44,0.03344325]
[1739360423898,5.065,197.43,197.38,5.0661]
[1739360425089,0.03790973,197.42,197.39,0.0382809]
[1739360425501,0.03790973,197.42,197.39,5.1039809]
[1739360431305,0.03790973,197.42,197.4,5.0654]
[1739360431602,9.73e-06,197.42,197.39,0.0382809]
[1739360432904,9.73e-06,197.42,197.41,5.0653]
[1739360433802,9.73e-06,197.42,197.39,0.0382809]
[1739360437108,9.73e-06,197.42,197.4,3.34148379]
[1739360437403,9.73e-06,197.42,197.41,4.623]
[1739360438206,9.73e-06,197.42,197.41,7.96271597]
[1739360439799,9.73e-06,197.42,197.41,21.89380022]
[1739360441910,9.73e-06,197.42,197.41,16.82850022]
[1739360442913,9.73e-06,197.42,197.41,16.82249745]
[1739360443207,9.73e-06,197.42,197.41,1.6048]
[1739360443410,9.73e-06,197.42,197.39,0.0382809]
[1739360443613,8.86578425,197.4,197.34,6.93172931]
[1739360443916,8.86578425,197.36,197.33,6.93172931]
[1739360444115,8.86578425,197.34,197.33,6.93172931]
[1739360445511,0.0363981,197.35,197.33,6.93172931]
[1739360446817,9.81e-05,197.35,197.32,0.03492221]
[1739360447818,9.81e-05,197.35,197.34,5.0671]
[1739360450716,9.81e-05,197.35,197.32,0.03492221]
[1739360452126,13.86796859,197.34,197.32,0.03492221]
[1739360455216,18.93516859,197.34,197.08,313.5384174]
[1739360455419,13.86796859,197.31,197.2,4.6329]
[1739360456425,0.03743268,197.28,197.27,5.0688]
[1739360461138,4.6262,197.39,197.27,13.86796859]
[1739360461429,4.6262,197.39,197.3,13.86796859]
[1739360461632,1.601,197.39,197.36,5.0666]
[1739360461934,5.0655,197.41,197.36,5.0666]
[1739360462234,0.03798109,197.4,197.37,0.03446094]
[1739360467734,5.10358109,197.4,197.37,0.03446094]
[1739360469538,0.03798109,197.4,197.37,0.03446094]
[1739360469739,5.0659,197.39,197.37,0.03446094]
[1739360469941,0.03798109,197.4,197.37,0.03446094]
[1739360472142,0.03798109,197.4,197.39,5.0658]
[1739360476544,5.064e-05,197.5,197.49,5.0633]
[1739360481648,5.064e-05,197.5,197.49,6.6025]
[1739360482153,5.064e-05,197.5,197.49,8.0962]
[1739360487050,5.064e-05,197.5,197.49,9.7018]
[1739360499055,195.0,197.78,197.49,197.6385]
[1739360499355,4.7176,197.77,197.49,197.6385]
[1739360499548,4.7176,197.77,197.71,5.0574]
[1739360499752,4.7176,197.77,197.62,0.0326265]
[1739360499954,4.7176,197.77,197.53,340.05223545]
[1739360500156,4.7176,197.77,197.75,5.0565]
[1739360500461,0.91690172,197.76,197.75,5.0565]
[1739360504349,0.91690172,197.76,197.55,203.1232]
[1739360505459,0.91690172,197.76,197.73,5.057]
[1739360505860,0.95135051,197.76,197.55,203.1232]
[1739360506063,0.95135051,197.76,197.73,0.03226354]
[1739360506252,0.95135051,197.76,197.55,203.1232]
[1739360506253,1.4947,197.75,197.55,203.1232]
[1739360506960,1.4947,197.75,197.68,5.0582]
[1739360507364,0.03833586,197.73,197.7,0.03793891]
[1739360508965,13.85903862,197.73,197.68,2.6232]
[1739360509165,13.85903862,197.73,197.61,13.82070276]
[1739360509366,13.82070276,197.73,197.61,13.82070276]
[1739360509561,5.0578,197.71,197.65,5.0592]
[1739360510162,0.03269407,197.7,197.66,0.03490084]
[1739360512168,0.03269407,197.7,197.68,5.0584]
[1739360513368,0.03269407,197.7,197.69,5.0582]
[1739360515967,0.03269407,197.7,197.67,5.0585]
[1739360520169,5.0583,197.69,197.66,0.03490084]
[1739360520375,8.1778,197.69,197.65,5.059]
[1739360521176,3.1195,197.69,197.65,4.5876]
[1739360521377,5.0589,197.67,197.58,13.82070276]
[1739360521575,3.1195,197.69,197.65,0.03449656]
[1739360521774,0.03705892,197.64,197.58,13.82070276]
[1739360521973,3.1195,197.69,197.58,13.82070276]
[1739360522174,0.03384928,197.63,197.59,0.03479576]
[1739360522374,0.03384928,197.63,197.62,5.0598]
[1739360524077,0.03384928,197.63,197.6,5.0603]
[1739360524470,5.0602,197.62,197.59,0.03479576]
[1739360524675,3.1576,197.61,197.59,0.03479576]
[1739360526775,3.1576,197.61,197.6,5.0605]
[1739360527774,3.1576,197.61,197.59,5.09549576]
[1739360528077,3.1576,197.61,197.59,0.03479576]
[1739360529877,5.0605,197.6,197.59,0.03479576]
[1739360537888,5.0605,197.6,197.53,5.0622]
[1739360537889,16.97830276,197.61,197.46,13.82070276]
[1739360538078,5.0618,197.55,197.46,13.82070276]
[1739360538491,5.0618,197.55,197.5,5.063]
[1739360539093,0.03269917,197.54,197.51,0.03227115]
[1739360539396,0.03269917,197.54,197.51,5.09497115]
[1739360539999,5.09469917,197.54,197.51,0.03227115]
[1739360544500,0.03269917,197.54,197.52,5.0625]
[1739360544699,0.03269917,197.54,197.51,0.03227115]
[1739360545802,0.03269917,197.54,197.51,5.09507115]
[1739360545803,5.09469917,197.54,197.51,5.09507115]
[1739360551103,5.0623,197.53,197.51,0.03227115]
[1739360558205,5.09469917,197.54,197.51,0.03227115]
[1739360560705,8.89340543,197.54,197.51,0.03227115]
[1739360561009,5.0623,197.53,197.51,0.03227115]
[1739360562209,5.0625,197.52,197.51,0.03227115]
[1739360573814,8.89340543,197.54,197.51,0.03227115]
[1739360574019,5.09489917,197.54,197.51,5.09497115]
[1739360574820,0.03269917,197.54,197.53,5.0623]
[1739360575515,8.86070626,197.62,197.52,8.86070626]
[1739360575714,8.86070626,197.62,197.57,8.86070626]
[1739360576419,8.86070626,197.62,197.55,8.86070626]
[1739360576617,0.03507053,197.61,197.58,0.03360966]
[1739360576920,5.09527053,197.61,197.58,0.03360966]
[1739360578922,8.86070626,197.6,197.58,0.03360966]
[1739360582825,13.92120626,197.6,197.58,0.03360966]
[1739360590827,5.0607,197.59,197.58,0.03360966]
[1739360591328,0.03507053,197.61,197.58,0.03360966]
[1739360591531,0.03507053,197.61,197.59,8.86070626]
[1739360592125,0.03507053,197.61,197.59,13.92140626]
[1739360592430,8.86070626,197.66,197.59,8.86070626]
[1739360592627,5.0593,197.65,197.61,8.86070626]
[1739360592827,5.0593,197.65,197.59,8.86070626]
[1739360593026,8.86070626,197.64,197.59,8.86070626]
[1739360593728,0.03217999,197.63,197.6,5.0604]
[1739360593931,0.03217999,197.63,197.59,8.86070626]
[1739360594826,0.03217999,197.63,197.61,5.0601]
[1739360597532,0.03217999,197.63,197.59,8.86070626]
[1739360597730,0.03217999,197.63,197.62,5.06]
[1739360602234,0.03217999,197.63,197.61,13.92080626]
[1739360602444,0.03217999,197.63,197.61,8.86070626]
[1739360602739,8.86070626,197.7,197.65,8.86070626]
[1739360603640,5.09249046,197.69,197.66,0.03495825]
[1739360608246,5.0585,197.68,197.66,0.03495825]
[1739360608944,8.86070626,197.68,197.66,0.03495825]
[1739360609148,5.0587,197.67,197.66,0.03495825]
[1739360620353,5.0584,197.68,197.66,0.03495825]
[1739360621561,5.09229046,197.69,197.66,0.03495825]
[1739360635073,5.09229046,197.69,197.66,5.09385825]
[1739360635474,0.03409046,197.69,197.66,0.03495825]
[1739360636475,0.03409046,197.69,197.67,5.0586]
[1739360638574,0.03409046,197.69,197.66,0.03495825]
[1739360638780,0.03409046,197.69,197.66,5.09385825]
[1739360659693,5.0584,197.68,197.66,0.03495825]
[1739360659889,8.86070626,197.68,197.66,0.03495825]
[1739360660295,5.0587,197.67,197.66,0.03495825]
[1739360660588,0.03409046,197.69,197.66,0.03495825]
[1739360665893,0.03409046,197.69,197.67,5.0586]
[1739360670300,0.03409046,197.69,197.68,5.0584]
[1739360673300,0.03409046,197.69,197.66,5.09375825]
[1739360674102,5.09229046,197.69,197.66,5.09375825]
[1739360680205,8.86070626,197.68,197.66,0.03495825]
[1739360680904,5.0587,197.67,197.66,0.03495825]
[1739360685411,13.91920626,197.68,197.66,0.03495825]
[1739360688417,8.86070626,197.68,197.66,0.03495825]
[1739360688717,5.0587,197.67,197.66,0.03495825]
[1739360709731,0.03409046,197.69,197.66,0.03495825]
[1739360710731,5.09229046,197.69,197.66,0.03495825]
[1739360715934,0.03409046,197.69,197.66,5.09385825]
[1739360716127,0.03409046,197.69,197.67,8.86070626]
[1739360716527,8.86070626,197.74,197.67,8.86070626]
[1739360716733,8.86070626,197.74,197.69,8.86070626]
[1739360717432,5.0572,197.73,197.69,13.91880626]
[1739360717833,5.09291247,197.73,197.69,13.91880626]
[1739360719336,0.03571247,197.73,197.71,8.86070626]
[1739360720836,8.86070626,197.78,197.71,8.86070626]
[1739360721034,0.91687177,197.77,197.71,8.86070626]
[1739360721734,8.86070626,197.76,197.7,0.03590124]
[1739360722735,13.91730626,197.76,197.71,5.0576]
[1739360724439,8.86070626,197.76,197.71,8.86070626]
[1739360724634,5.0562,197.77,197.72,5.0572]
[1739360724841,5.0562,197.77,197.73,8.86070626]
[1739360725035,8.86070626,197.78,197.73,8.86070626]
[1739360725339,8.86070626,197.78,197.74,5.0569]
[1739360725742,5.0558,197.79,197.74,5.0569]
[1739360725932,5.0558,197.79,197.74,6.6008]
[1739360726444,5.0558,197.79,197.75,8.86070626]
[1739360728644,5.0558,197.79,197.74,6.6008]
[1739360730144,8.86070626,197.8,197.74,6.6008]